Cogmind - Beta 11.2 @@@ ROGUE MODE // 2023.01.22 @ 20:19:34 Player: Red Box Result: Destroyed by as-62971 with Assembled Rifle Performance ------------- Evolutions (0) 0 Regions Visited (2) 400 Robots Destroyed (14) 70 Value Destroyed (342) 342 Prototype IDs (5) 100 Alien Tech Used (0) 0 Bonus (0) 0 TOTAL SCORE: 912 Bonus ------- None Cogmind --------- Core Integrity 0/250 Matter 282/300 Energy 60/100 System Corruption 5% Temperature Warning (378) Movement Core (50) Location -10/Mines Parts ------- > --- POWER (1) -------- (None) > --- PROPULSION (2) --- (None) > --- UTILITY (2) ------ (None) > --- WEAPON (2) ------- (None) > --- INVENTORY (5) ---- Improved Treads Compact Wheel Heavy Assault Rifle Heavy Assault Rifle Datajack Peak State ------------ > --- POWER ------------ Heavy Ion Engine > --- PROPULSION ------- Wheel Wheel > --- UTILITY ---------- Heat Sink High-capacity Storage Unit > --- WEAPON ----------- Advanced Beam Cannon Advanced Beam Cannon > --- INVENTORY -------- Heavy Ion Engine Heavy Ion Engine Light Treads Light Treads Improved Treads Improved Treads Improved Treads Improved Treads Compact Wheel Compact Wheel Compact Wheel Light Armor Plating Light Armor Plating Advanced Beam Cannon Heavy Assault Rifle Heavy Assault Rifle Heavy Assault Rifle Heavy Assault Rifle Rocket Launcher Datajack [Rating: 16] Favorites ----------- Power Ion Engine Engine Ion Engine Propulsion Aluminum Leg Leg Aluminum Leg Wheel Wheel Utility Heat Sink Device Heat Sink Storage Large Storage Unit Protection Light Armor Plating Weapon Medium Laser Energy Gun Medium Laser Energy Cannon Advanced Beam Cannon Ballistic Gun Assault Rifle Launcher Rocket Launcher Build | -11 -10 -10 ------- Run | Scr Mat Min Slots Evolved . | . . . Power . | . . . Propulsion . | . . . Utility . | . . . Weapon . | . . . Parts Attached 26 | 10 14 2 Power 5 | 4 1 . Engine 5 | 4 1 . Core . | . . . Reactor . | . . . Propulsion 5 | 2 3 . Treads . | . . . Leg 2 | 2 . . Wheel 3 | . 3 . Hover . | . . . Flight . | . . . Utility 7 | 2 5 . Device 3 | 1 2 . Storage 3 | 1 2 . Processor . | . . . Hackware . | . . . Protection 1 | . 1 . Artifact . | . . . Weapon 9 | 2 5 2 Energy Gun 2 | . 2 . Energy Cannon 4 | . 3 1 Ballistic Gun 2 | 2 . . Ballistic Cannon . | . . . Launcher 1 | . . 1 Special Weapon . | . . . Impact Weapon . | . . . Slashing Weapon . | . . . Piercing Weapon . | . . . Special Melee Weapon . | . . . Unidentified Prototypes 2 | . 2 . Parts Lost 7 | . . 7 Power 1 | . . 1 Propulsion 2 | . . 2 Utility 1 | . . 1 Weapon 3 | . . 3 Highest Loss Streak 7 | . . 7 To Critical Strikes . | . . . Average Slot Usage (%) 97 | . 98 73 Engine 13 | . 14 9 Leg 17 | . 17 . Wheel 10 | . 10 14 Device 12 | . 12 9 Storage 14 | . 14 14 Energy Gun 16 | . 16 . Energy Cannon 5 | . 4 23 Ballistic Gun 6 | . 6 . Naked Turns 1 | . . 1 Heaviest Build 57 | 15 57 57 Greatest Support 26 | 20 26 26 Greatest Overweight (x) 2 | . 2 2 Average Overweight (x) 1 | . 1 1 Largest Inventory Capacity 20 | 8 20 20 Average Capacity 15 | 6 15 19 Most Carried 20 | 8 20 20 Average Carried 14 | 5 14 19 Final Capacity 20 | 8 20 5 Final Carried 20 | 8 20 5 Class Distribution -------------------- 100% | Mutant Dominant Class ---------------- Mutant | -10/Materials Mutant | -10/Mines Resources | -11 -10 -10 ----------- Run | Scr Mat Min Matter Collected 650 | 284 366 . Remotely . | . . . Salvage Created 626 | 89 468 69 Parts 36 | 6 30 . Haulers Intercepted 2 | . 2 . Recyclers Shooed 1 | 1 . . Parts Field Recycled . | . . . Retrieved Matter . | . . . Parts Self-Destructed . | . . . Prevented . | . . . Kills | -11 -10 -10 ------- Run | Scr Mat Min Combat Hostiles Destroyed 20 | . 7 13 Guns 4 | . 4 . Cannons 7 | . 2 5 AOE 8 | . . 8 Classes Destroyed 7 | 2 4 1 Tunneler 1 | 1 . . Hauler 2 | . 2 . Recycler 1 | 1 . . Operator 1 | . 1 . Watcher 2 | . 2 . Grunt 7 | . 7 . Assembled 13 | . . 13 Best Kill Streak 13 | 2 2 13 Combat Bots Only 13 | . 2 13 Max Kills in Single Turn 4 | 1 1 4 Gunslinging . | . . . Exploded 4 | . . 4 Melee . | . . . Uniques/NPCs Destroyed . | . . . Combat | -11 -10 -10 -------- Run | Scr Mat Min Damage Taken 1088 | . 309 779 Core 254 | . 36 218 Absorbed by Shields . | . . . Core Remaining (%) 100 | 100 . . Volleys Fired 53 | 4 41 8 Largest 2 | 2 2 2 Hottest 136 | 40 136 136 Shots Fired 99 | 8 75 16 Gun 75 | 8 67 . Cannon 21 | . 8 13 Launcher 3 | . . 3 Special . | . . . Kinetic 22 | 8 14 . Thermal 74 | . 61 13 Explosive 3 | . . 3 Electromagnetic . | . . . Robot Hit Streak 11 | 8 11 2 Robot Miss Streak 5 | . 5 3 Penetration Max . | . . . Secondary Targets . | . . . Shots Hit Robots 51 | 8 38 5 Core Hits 46 | 3 21 22 Critical Kills . | . . . Critical Parts Destroyed . | . . . Critical Strikes 3 | . 3 . Burn 3 | . 3 . Melee Attacks . | . . . Impact . | . . . Slashing . | . . . Piercing . | . . . Sneak Attacks . | . . . Combat Hostiles . | . . . Follow-up Attacks . | . . . Damage Inflicted 1400 | 100 521 779 Guns 517 | 100 417 . Cannons 228 | . 104 124 Explosions 655 | . . 655 Melee . | . . . Ramming . | . . . Kinetic 176 | 100 76 . Thermal 569 | . 445 124 Explosive 655 | . . 655 Electromagnetic . | . . . Impact . | . . . Slashing . | . . . Piercing . | . . . Highest Corruption 5 | . . 5 Average Corruption 5 | . . 5 Corruption Purged . | . . . Corruption Blocked . | . . . Overload Shots . | . . . Overflow Damage 15 | . . 15 Projectiles . | . . . Explosions 15 | . . 15 Melee . | . . . Knockbacks . | . . . Impact . | . . . Kinetic . | . . . Secondary . | . . . Self-Inflicted Damage 62 | . . 62 Shots 2 | . . 2 Rammed . | . . . Targets Rammed . | . . . Kicked . | . . . Crushed . | . . . Highest Temperature 403 | . 222 403 Average Temperature 84 | . 70 148 Received Heat Transfer 310 | . 210 100 Effects 2 | . 1 1 Interference 2 | . 1 1 Siege Activations . | . . . Robots Corrupted . | . . . Combat Hostiles . | . . . Parts Fried . | . . . Impact Corruptions . | . . . Robots Melted 1 | . 1 . Combat Hostiles 1 | . 1 . Parts Melted 3 | . 3 . Heat Transferred 1628 | . 1406 222 Parts Sabotaged . | . . . Parts Stolen . | . . . Parts Stripped . | . . . Power Chain Reactions . | . . . Missiles Intercepted . | . . . Alert | -11 -10 -10 ------- Run | Scr Mat Min Peak Influence 132 | 10 132 91 Initial 51 | . 6 51 Average 49 | 5 51 57 Maximum Alert Level . | . . . Low Security (%) 100 | 100 100 100 Level 1 . | . . . Level 2 . | . . . Level 3 . | . . . Level 4 . | . . . Level 5 . | . . . High Security . | . . . Max Security . | . . . Squads Dispatched 1 | . 1 . Investigation . | . . . Extermination . | . . . Reinforcement 1 | . 1 . Assault . | . . . Garrison . | . . . Intercept . | . . . Searches Triggered . | . . . Construction Impeded . | . . . Haulers Reinforced . | . . . Active Scanning Responses . | . . . Cargo Convoy Interrupts . | . . . Stealth | -11 -10 -10 --------- Run | Scr Mat Min Distress Signals 1 | . 1 . Communications Jammed . | . . . Distress Signals . | . . . Times Spotted 35 | . 16 19 Peak Tracking Total 13 | . 2 13 Tactical Retreats 2 | . 2 . Traps | -11 -10 -10 ------- Run | Scr Mat Min Traps Triggered . | . . . Indirectly . | . . . Trap Hack Attempts . | . . . Triggered . | . . . Disarmed . | . . . Reprogrammed . | . . . Reused . | . . . Traps Extracted . | . . . Installed . | . . . Triggered . | . . . Machines | -11 -10 -10 ---------- Run | Scr Mat Min Machines Disabled . | . . . Max in Single Turn . | . . . Machines Sabotaged . | . . . Garrisons Compromised . | . . . Overloaded Fab Kills . | . . . Hacking | -11 -10 -10 --------- Run | Scr Mat Min Machines Accessed 9 | . 9 . Terminals 7 | . 7 . Fabricators . | . . . Repair Stations 1 | . 1 . Recycling Units 1 | . 1 . Scanalyzers . | . . . Garrison Access . | . . . Total Hacks 27 | . 27 . Successful 12 | . 12 . Failed 15 | . 15 . Catastrophic . | . . . Database Lockouts . | . . . Manual 13 | . 13 . Terminals 21 | . 21 . Fabricators . | . . . Repair Stations 2 | . 2 . Recycling Units 4 | . 4 . Scanalyzers . | . . . Garrison Access . | . . . Terminal Hacks 7 | . 7 . Robot Analysis 5 | . 5 . Prototype ID Bank 2 | . 2 . Fabricator Hacks . | . . . Repair Station Hacks 1 | . 1 . Scan Component 1 | . 1 . Recycling Unit Hacks 1 | . 1 . Retrieve Components 1 | . 1 . Scanalyzer . | . . . Garrison Access Hacks . | . . . Unauthorized Hacks 3 | . 3 . Terminals 1 | . 1 . Operators 1 | . 1 . Fabricators . | . . . Repair Stations . | . . . Recycling Units 2 | . 2 . Reject 1 | . 1 . Mask 1 | . 1 . Scanalyzers . | . . . Garrison Access . | . . . Data Cores Recovered 1 | . 1 . Used . | . . . Hacking Detections 9 | . 9 . Full Trace Events . | . . . Feedback Events . | . . . Feedback Blocked . | . . . Robot Schematics Acquired . | . . . Robots Built . | . . . Authchips . | . . . Time . | . . . Total Robot Build Rating . | . . . Part Schematics Acquired . | . . . Parts Built . | . . . Authchips . | . . . Time . | . . . Total Part Build Rating . | . . . Parts Repaired . | . . . Time . | . . . Parts Recycled . | . . . Recycled Matter . | . . . Retrieved Matter . | . . . Retrieved Components 6 | . 6 . Parts Scanalyzed . | . . . Part Schematics Acquired . | . . . Parts Damaged . | . . . Bothacking | -11 -10 -10 ------------ Run | Scr Mat Min Used RIF Installer . | . . . Robots Hacked . | . . . Non-combat . | . . . Combat . | . . . Robot Hacks Applied . | . . . Relay Couplers Released . | . . . Fabnet Peak Effective % . | . . . Robots Rewired . | . . . Allies Hacked . | . . . Hacks Repelled . | . . . Allies | -11 -10 -10 -------- Run | Scr Mat Min Total Allies . | . . . Largest Group . | . . . Highest-Rated Group . | . . . Highest-Rated Ally . | . . . Total Orders . | . . . Ally Attacks . | . . . Total Damage . | . . . Kills . | . . . Allies Corrupted . | . . . Allies Melted . | . . . Intel | -11 -10 -10 ------- Run | Scr Mat Min Robot Analysis Total 5 | . 5 . Derelict Logs Recovered . | . . . Drone Launches . | . . . Drone Recoveries . | . . . Exploration | -11 -10 -10 ------------- Run | Scr Mat Min Turns Passed 2500 | 113 2327 60 Spaces Moved 1426 | 56 1342 28 Core 6 | 5 . 1 Treads . | . . . Legs 745 | 51 694 . Wheels 675 | . 648 27 Hover . | . . . Flight . | . . . Fastest Speed 50 | 50 95 50 Average Speed 138 | 113 140 117 Slowest Speed 190 | 120 190 120 Overloaded Moves . | . . . Propulsion Burnouts . | . . . Robots Hopped . | . . . Cave-ins Triggered . | . . . Exploration Rate (%) 38 | 4 99 12 Regions Visited 2 Branch Regions 1 Pre-discovered Areas . | . . . Known Exits Taken . | . . . Unknown Exits Taken 2 | 1 1 . Scrap Searched . | . . . Spaces Dug . | . . . Terrain Destroyed 30 | . . 30 Melee . | . . . Projectile 1 | . . 1 AOE 29 | . . 29 Terrain Rammed . | . . . Walls Destroyed . | . . . Machines Disabled . | . . . Actions | -11 -10 -10 --------- Run | Scr Mat Min Total 1849 | 95 1716 38 Wait 289 | 13 276 . Move 1424 | 55 1341 28 Hop . | . . . Pick Up 34 | 10 24 . Fast Attach 12 | 7 5 . Attach 5 | 1 3 1 Detach . | . . . Swap 9 | 2 6 1 Drop 21 | 3 18 . Fire 53 | 4 41 8 Melee . | . . . Ram . | . . . Kick . | . . . Crush . | . . . Escape Stasis . | . . . Rewire 2 | . 2 . Trap . | . . . Miscellaneous . | . . . Route ------- -11/Scrapyard -10/Materials (discovered 4 exits: [*Mat x3] / [*Min]) -10/Mines History --------- Turn | Location | Event 17 | -11/Scrapyard | Discovered new exit (range 14) 114 | -11/Scrapyard | Entered Materials 305 | -10/Materials | Build established: Mutant 976 | -10/Materials | Discovered new exit (range 10) 1087 | -10/Materials | Discovered new exit (range 13) 1535 | -10/Materials | Discovered new exit (range 7) 1683 | -10/Materials | Discovered new exit (range 7) 2441 | -10/Materials | Entered Mines 2453 | -10/Mines | Assembled infested the area 2458 | -10/Mines | Assisted by a Guerilla fighting off Assembled 2490 | -10/Mines | Core integrity fell below 50% 2499 | -10/Mines | Core integrity fell below 20% 2500 | -10/Mines | Released all parts (1) 2501 | -10/Mines | Destroyed by as-62971 with Assembled Rifle Last Messages --------------- 02481_ The unstable cave ceiling collapses. 02481_ as-91979 destroyed. 02481_ as-08343 destroyed. 02483_ as-60338 destroyed. 02483_ Rocket Launcher destroyed. 02485_ as-30386 destroyed. 02486_ Heat Sink destroyed. 02486_ System corrupted by crushing effect (+5). 02486_ Knocked back. 02486_ Hvy. Ion Engine destroyed. 02488_ as-50728 destroyed. 02489_ The unstable cave ceiling collapses. 02491_ as-44481 destroyed. 02494_ The unstable cave ceiling collapses. 02494_ as-42289 destroyed. 02498_ Adv. Beam Cannon destroyed. 02500_ Overheating: System interference. 02500_ Adv. Beam Cannon temporarily disabled. 02500_ Adv. Beam Cannon destroyed. 02500_ Released Hcp. Storage Unit. Map ----- +----------------------------------------------------+ | ??????????????????????????????????????????????? | | ??????????????????????????????????????????????? | | ??????????????????????????????????????????????? | | ??????????????????????????????????????????????? | | ??????????????????????????????????????????????? | | ??????????????????????????????????????????????? | | ??????????????????????????????????????????????? | | ??????????????????????????????????????????????? | | ??????????????????????????????????????????????? | | ??????????????????????????????????????????????? | | ??????????????????????????????????????????????? | | ??????????????????????????????????????????????? | | ??????????????????????????????????????????????? | | ??????????????????##??????????????????????????? | | ?????????????????? ????????###???????????????? | | ??????????????????# #???????# ???????????????? | | ??????????????????# ##??????# #???????????????? | | ???????????#???#### #??????# #?????????? ##??? | | ??????????## ??? #??????# #?????????? ???? | | ?????????## ?## % ##????## ###???????? #???? | | ?????????# < # #???## ##???#### ####? | | ?????????# # ##### ##### #? | | ????????## a#! ## """ #? | | ????????# a=a[## ###### """ #? | | ????????# aa%%%=* #????# """ #? | | ?????????# =][!@*= ##????# #? | | ?????????# # ##[[! ##?????# #? | | ?????????## ## ##?##### ##??????# #? | | ??????????###??##???????## ##???????#########? | | ?????????????????????????####?????????????????? | | ??????????????????????????????????????????????? | | ??????????????????????????????????????????????? | | | | | | | | | | | | | | | | | | | | | | | | | | | | | | | | | | | | | +----------------------------------------------------+ Best States ------------- Heat Dissipation 35 Energy Generation 14 Energy Capacity 280 Matter Stores 300 Matter Capacity 300 Sight Range 16 Terrain Scan Range 16 Terrain Scan Density 10 Evasion (%) 55 Item Schematics ----------------- None Robot Schematics ------------------ None Fabricated ------------ Nothing Alien Tech Used ----------------- None Achievements -------------- None Challenges ------------ None Game ------ Seed ProtonLinkedPick Manual? 0 Play Time 00:18:33 Cumulative 359.8 hours Start 2023.01.22 @ 20:00:59 End 2023.01.22 @ 20:19:34 Sessions 1 Manual Loads 0 Difficulty Rogue Special Mode None Game No. 292 Rogue 292 Adventurer 0 Explorer 0 Win Type - Total 0 Types 0/0/0/0/0/0/0/0/0 Lore% 57 Gallery% 63 Achievement% 46 Wizard Run 0 Options --------- ASCII 0 Keyboard 0 Movement Mouse Keybinds 0 Fullscreen 1 Font 16/SmallcapsGlow Map View 75x55 Tactical HUD 1 Map Filters NONE Filters NONE Steam 1 RUN: 074f3e90-9aa3-4992-9ded-9f5a59faa151